bitfinex/quotes_BTCUSD_20220204
["timestamp","ask_amount","ask_price","bid_price","bid_amount"]
[1643992293514,0.000273,40211.0,40209.0,0.338887]
[1643992293715,0.09664,40217.0,40203.0,0.15121846]
[1643992293915,0.09664,40217.0,40203.0,0.1509]
[1643992294117,0.09664,40217.0,40208.0,0.1509]
[1643992294317,0.09664,40217.0,40207.0,0.00031846]
[1643992294318,0.000273,40209.0,40207.0,0.00031846]
[1643992294518,0.16393759,40216.0,40203.0,0.35]
[1643992294718,0.16393759,40216.0,40197.0,0.2609785]
[1643992294719,0.05,40207.0,40204.0,0.65]
[1643992294916,0.04686068,40207.0,40206.0,0.2009]
[1643992295118,0.04686068,40207.0,40206.0,0.490122]
[1643992295915,0.0001285,40212.0,40206.0,0.540122]
[1643992296115,0.05,40220.0,40207.0,0.50551459]
[1643992296318,0.0004283,40212.0,40209.0,0.1509]
[1643992296515,0.0004283,40212.0,40210.0,0.339222]
[1643992296781,0.0004283,40212.0,40211.0,0.339222]
[1643992296966,0.0004283,40212.0,40205.0,0.00031846]
[1643992297170,0.0004283,40212.0,40204.0,0.00096382]
[1643992297367,0.11466934,40207.0,40202.0,0.06571105]
[1643992297567,0.00042832,40212.0,40206.0,0.00096378]
[1643992297767,0.00042832,40212.0,40207.0,0.339222]
[1643992297967,0.00042832,40212.0,40206.0,0.00096378]
[1643992298167,0.00042832,40212.0,40205.0,0.1509]
[1643992298367,0.00042832,40212.0,40209.0,0.05]
[1643992298570,0.248787,40238.0,40219.0,0.00939259]
[1643992298769,1.493906,40248.0,40219.0,0.00939259]
[1643992298770,0.44000013,40237.0,40221.0,0.69959926]
[1643992298970,0.02084512,40225.0,40222.0,0.540122]
[1643992299171,0.05,40234.0,40224.0,0.05939259]
[1643992299381,0.25169,40233.0,40229.0,0.1509]
[1643992299574,0.25169,40233.0,40224.0,0.02084512]
[1643992299575,0.14403079,40231.0,40224.0,0.02084512]
[1643992299770,0.25169,40230.0,40224.0,0.02084512]
[1643992299970,0.25169,40230.0,40228.0,0.3606822]
[1643992300170,0.25169,40230.0,40224.0,0.02084512]
[1643992300616,0.002,40248.0,40229.0,0.05]
[1643992300816,0.002,40248.0,40242.0,0.00839259]
[1643992301012,0.002,40248.0,40247.0,1.1]
[1643992301013,0.09864,40248.0,40247.0,1.1]
[1643992301212,0.09864,40248.0,40247.0,0.339222]
[1643992301416,0.02687748,40260.0,40247.0,0.25491354]
[1643992301613,0.001,40275.0,40258.0,0.00839259]
[1643992301814,0.001,40270.0,40265.0,0.899]
[1643992302019,0.001,40270.0,40266.0,0.339222]
[1643992302414,0.001,40275.0,40267.0,0.44968007]
[1643992302415,0.001,40268.0,40267.0,0.44968007]
[1643992302714,0.001,40268.0,40261.0,0.049]
[1643992302715,0.25169,40268.0,40261.0,0.049]
[1643992302914,0.001,40262.0,40253.0,0.7763]
[1643992303116,0.25169,40267.0,40251.0,0.339222]
[1643992303117,0.001,40261.0,40251.0,0.339222]
[1643992303313,0.1609827,40259.0,40248.0,0.049]
[1643992303520,0.45724774,40259.0,40251.0,0.049]
[1643992303713,0.29626504,40259.0,40258.0,0.05739259]
[1643992303915,0.00054394,40260.0,40258.0,0.049]
[1643992304112,0.00054394,40260.0,40250.0,0.44114977]
[1643992304392,0.00054394,40260.0,40251.0,0.049]
[1643992304597,0.25169,40259.0,40250.0,0.44114977]
[1643992304793,0.12908661,40254.0,40247.0,0.0675362]
[1643992304994,0.30663822,40253.0,40247.0,0.0185362]
[1643992305193,1.22610618,40248.0,40247.0,0.0185362]
[1643992305398,0.10318218,40248.0,40247.0,0.0185362]
[1643992305896,0.028076,40248.0,40247.0,0.0185362]
[1643992306293,0.001,40248.0,40247.0,0.0185362]
[1643992306493,0.028076,40248.0,40247.0,0.0185362]
[1643992306894,0.028076,40248.0,40242.0,0.01939565]
[1643992307092,0.07999374,40250.0,40242.0,0.01939565]
[1643992307093,0.08042733,40250.0,40242.0,0.01939565]
[1643992307297,0.001,40245.0,40242.0,0.01939565]
[1643992307492,0.00043359,40250.0,40242.0,0.01939565]
[1643992307694,0.001,40246.0,40243.0,0.338849]
[1643992307895,0.001,40249.0,40242.0,0.01939565]
[1643992308115,0.001,40249.0,40243.0,0.338849]
[1643992308314,0.30532231,40267.0,40242.0,0.01939565]
[1643992308315,0.001,40244.0,40242.0,0.01939565]
[1643992308516,0.00043359,40247.0,40243.0,0.338849]
[1643992308714,0.00043359,40247.0,40242.0,0.01939565]
[1643992309315,1.65070065,40243.0,40242.0,0.02029307]
[1643992309519,1.89441416,40242.0,40230.0,0.00031846]
[1643992309714,1.89441416,40242.0,40227.0,0.7289]
[1643992309715,0.00070065,40231.0,40229.0,0.00031846]
[1643992309917,0.00070065,40231.0,40230.0,1.438849]
[1643992310115,0.00070065,40231.0,40223.0,0.04929935]
[1643992310316,0.36299944,40239.0,40229.0,0.338849]
[1643992310517,0.00070065,40231.0,40229.0,0.338849]
[1643992310714,0.00044966,40229.0,40228.0,0.45624225]
[1643992310917,0.00044966,40229.0,40228.0,0.79477279]
[1643992311757,0.12873368,40229.0,40221.0,0.00031846]
[1643992311957,0.00070065,40222.0,40220.0,0.04961781]
[1643992312156,0.12873368,40229.0,40220.0,0.04929935]
[1643992312358,0.00070065,40221.0,40220.0,0.49929935]
[1643992312563,0.00070065,40221.0,40220.0,0.38814835]
[1643992312759,0.00070065,40221.0,40220.0,0.04929935]
[1643992313061,0.00070065,40221.0,40214.0,0.00031846]
[1643992313259,0.00070065,40215.0,40213.0,0.7412]
[1643992313459,0.00070065,40215.0,40213.0,0.04929935]
[1643992313659,0.07514097,40221.0,40214.0,0.338849]
[1643992313959,0.00044806,40223.0,40215.0,1.15]
[1643992314159,0.4061784,40231.0,40214.0,0.35723281]
[1643992314461,0.124346,40229.0,40221.0,0.35153281]
[1643992314659,0.26290194,40228.0,40214.0,0.12714626]
[1643992314861,0.08560944,40227.0,40214.0,0.00031846]
[1643992315061,0.08560944,40227.0,40211.0,0.00031846]
[1643992315260,0.2629282,40228.0,40210.0,0.02143598]
[1643992315525,0.00044806,40221.0,40210.0,0.00031846]
[1643992315709,0.00044806,40221.0,40209.0,0.05]
[1643992315710,0.44709449,40219.0,40209.0,0.05]
[1643992315910,0.44709449,40219.0,40209.0,0.05031846]
[1643992316108,0.00044806,40221.0,40209.0,0.05031846]
[1643992316109,0.00044806,40221.0,40209.0,0.045]
[1643992316310,0.005,40214.0,40210.0,0.338849]
[1643992316608,0.42811898,40223.0,40211.0,1.3]
[1643992316609,0.06218,40223.0,40211.0,1.3]
[1643992316810,0.00044845,40217.0,40216.0,0.20580517]
[1643992317009,0.00044845,40217.0,40216.0,0.54465417]
[1643992317210,0.00044845,40217.0,40216.0,0.92826514]
[1643992317411,0.00044845,40217.0,40216.0,0.72245997]
[1643992317612,0.00044845,40217.0,40212.0,0.05]
[1643992317809,0.00044845,40217.0,40204.0,0.00096845]
[1643992317810,0.027076,40224.0,40207.0,0.05031846]
[1643992318014,0.14308052,40223.0,40207.0,0.05]
[1643992318210,0.027076,40222.0,40207.0,0.05839259]
[1643992318410,0.14308052,40223.0,40207.0,0.05839259]
[1643992318610,0.37145656,40222.0,40210.0,0.45586961]
[1643992318809,0.05762745,40224.0,40213.0,0.05]
[1643992319009,0.02196785,40224.0,40217.0,0.05]
[1643992319261,0.02196785,40224.0,40211.0,0.00031846]
[1643992319465,0.14429495,40222.0,40212.0,0.320894]
[1643992319864,0.35897794,40229.0,40212.0,0.320894]
[1643992320062,0.35897794,40229.0,40209.0,0.00031846]
[1643992320270,0.35897794,40229.0,40208.0,0.00128715]
[1643992320462,0.00044726,40223.0,40209.0,0.339097]
[1643992320663,0.00044726,40223.0,40215.0,0.00839259]
[1643992320863,0.03714726,40229.0,40219.0,1.25]
[1643992321064,0.02074794,40233.0,40224.0,0.05]
[1643992321271,0.02074794,40233.0,40218.0,0.13993908]
[1643992321272,0.02074794,40233.0,40230.0,0.00839259]
[1643992321467,0.40718278,40256.0,40232.0,0.00839259]
[1643992321666,0.05525863,40260.0,40232.0,0.00839259]
[1643992321667,0.05,40260.0,40254.0,0.05839259]
[1643992321866,0.002,40264.0,40258.0,0.02861823]
[1643992322065,0.053,40269.0,40260.0,0.05]
[1643992322264,0.39666,40262.0,40261.0,0.00839259]
[1643992322464,0.003,40269.0,40261.0,1.50839259]
[1643992322664,0.003,40269.0,40268.0,1.6]
[1643992322870,0.001,40271.0,40269.0,1.0]
[1643992323116,0.001,40271.0,40270.0,0.339097]
[1643992323313,0.001,40271.0,40270.0,0.338097]
[1643992323914,0.001,40273.0,40270.0,0.339097]
[1643992323915,0.14664266,40272.0,40270.0,0.339097]
[1643992324114,0.12230661,40272.0,40270.0,0.339097]
[1643992324314,0.12230661,40272.0,40269.0,0.40647631]
[1643992324315,0.052,40278.0,40272.0,1.35]
[1643992324515,0.052,40278.0,40273.0,0.338734]
[1643992324715,0.002,40278.0,40273.0,0.338734]
[1643992325517,0.002,40278.0,40273.0,0.337734]
[1643992325715,0.002,40278.0,40264.0,0.05]
[1643992325716,0.37516002,40276.0,40264.0,0.05]
[1643992325915,0.002,40278.0,40266.0,0.00839259]
[1643992326119,0.002,40278.0,40276.0,0.00839259]
[1643992326315,0.002,40278.0,40277.0,1.238698]
[1643992326756,0.002,40278.0,40277.0,0.338698]
[1643992326957,0.002,40278.0,40277.0,0.3735377]
[1643992327159,0.002,40278.0,40277.0,0.7122357]
[1643992327357,0.0001,40278.0,40277.0,0.72062829]
[1643992327559,0.25169,40284.0,40278.0,1.65]
[1643992327759,0.05,40287.0,40283.0,1.6]
[1643992327960,0.001,40291.0,40286.0,0.00839259]
[1643992328162,0.001,40291.0,40287.0,0.36068538]
[1643992328358,0.0511,40300.0,40288.0,0.47109853]
[1643992328663,0.0511,40300.0,40289.0,0.23311149]
[1643992328859,0.00054145,40294.0,40289.0,0.23311149]
[1643992329058,0.00054145,40294.0,40288.0,0.57109853]
[1643992329357,0.00054145,40294.0,40288.0,0.47109853]
[1643992329557,0.00054145,40294.0,40288.0,0.46270594]
[1643992329758,0.1177988,40291.0,40288.0,0.46270594]
[1643992329957,0.21953493,40296.0,40287.0,0.44198738]
[1643992330162,0.00054145,40293.0,40287.0,0.44198738]
[1643992330538,1.348054,40288.0,40287.0,0.02198738]
[1643992330721,0.00054145,40293.0,40287.0,0.02198738]
[1643992330917,0.72340178,40288.0,40287.0,0.02198738]
[1643992331116,0.16145578,40288.0,40287.0,0.02198738]
[1643992331516,0.26459093,40288.0,40287.0,0.02198738]
[1643992332217,0.26459093,40288.0,40287.0,0.00198738]
[1643992332419,0.28459093,40288.0,40287.0,0.00198738]
[1643992332615,0.7542921,40288.0,40287.0,0.00198738]
[1643992332816,0.062078,40290.0,40288.0,0.35]
[1643992333017,0.001,40298.0,40287.0,0.00198738]
[1643992333216,0.001,40298.0,40287.0,0.02198738]
[1643992333420,0.001,40298.0,40287.0,0.0208349]
[1643992333615,0.001,40298.0,40287.0,0.01963817]
[1643992333815,0.15287127,40292.0,40291.0,0.42870113]
[1643992334017,0.00054032,40294.0,40291.0,0.42870113]
[1643992334277,0.00054032,40294.0,40293.0,0.338604]
[1643992334478,1.65,40293.0,40269.0,0.04893767]
[1643992334678,1.65,40293.0,40262.0,1.344116]
[1643992334679,0.01963817,40288.0,40262.0,1.27]
[1643992334879,0.0417,40287.0,40262.0,1.22]
[1643992335076,0.0417,40287.0,40262.0,0.79959234]
[1643992335077,0.35142812,40269.0,40262.0,0.79959234]
[1643992335281,0.62824884,40268.0,40262.0,0.79959234]
[1643992335678,0.67824884,40268.0,40262.0,0.79959234]
[1643992336081,0.15706663,40267.0,40262.0,0.79959234]
[1643992336277,0.15706663,40267.0,40239.0,0.09289475]
[1643992336278,0.27288871,40250.0,40237.0,0.05]
[1643992336477,0.06214,40257.0,40237.0,0.04466616]
[1643992336679,0.00533384,40240.0,40238.0,0.338556]
[1643992336878,0.2424386,40256.0,40235.0,0.05]
[1643992336879,0.0417,40242.0,40235.0,0.05]
[1643992337078,0.14534704,40250.0,40246.0,0.00839259]
[1643992337280,0.0367,40253.0,40250.0,0.338556]
[1643992337479,0.0367,40253.0,40247.0,0.15833572]
[1643992337881,0.0367,40253.0,40248.0,0.75950851]
[1643992338110,0.0367,40253.0,40247.0,0.15833572]
[1643992338317,0.0364639,40253.0,40239.0,0.05]
[1643992338511,0.24218709,40252.0,40233.0,0.49632]
[1643992338713,0.24218709,40252.0,40241.0,0.05]
[1643992338909,0.0364639,40253.0,40241.0,0.05]
[1643992339109,0.0364639,40253.0,40251.0,0.338556]
[1643992339309,0.0364639,40253.0,40252.0,0.15639944]
[1643992339511,0.0364639,40253.0,40252.0,0.49495544]
[1643992339709,0.4864639,40253.0,40240.0,0.05839259]
[1643992339909,0.4864639,40253.0,40232.0,0.124248]
[1643992339910,0.35476229,40250.0,40234.0,0.05]
[1643992340112,0.35476229,40250.0,40241.0,0.2485]
[1643992340113,0.0417,40249.0,40241.0,0.2485]
[1643992340311,0.0417,40249.0,40241.0,0.34387]
[1643992340514,0.0417,40249.0,40248.0,0.788822]
[1643992340711,0.0417,40249.0,40248.0,0.46413339]
[1643992340909,0.0417,40249.0,40248.0,0.55949339]
[1643992341316,0.0194556,40260.0,40249.0,1.6]
[1643992341516,0.0194556,40260.0,40258.0,0.05]
[1643992341767,0.0194556,40260.0,40259.0,0.49398134]
[1643992341964,0.0194556,40260.0,40259.0,1.00237393]
[1643992342165,0.00053921,40261.0,40260.0,1.488822]
[1643992342369,0.00053921,40261.0,40260.0,1.638822]
[1643992342565,0.00053921,40261.0,40260.0,0.76374176]
[1643992343168,0.31382055,40265.0,40260.0,0.338822]
[1643992343370,0.00042586,40263.0,40259.0,0.0194556]
[1643992343869,0.33877,40262.0,40259.0,0.0194556]
[1643992344069,0.51129558,40261.0,40259.0,0.0194556]
[1643992344267,1.655007,40260.0,40259.0,0.0194556]
[1643992344468,0.005007,40260.0,40259.0,0.0194556]
[1643992344666,0.0417,40261.0,40259.0,0.0194556]
[1643992345266,0.0417,40261.0,40259.0,0.0106397]
[1643992345519,0.3475859,40260.0,40259.0,0.0106397]
[1643992345713,0.44495385,40260.0,40259.0,0.0106397]
[1643992346214,0.3475859,40260.0,40259.0,0.0106397]
[1643992346518,0.3475859,40260.0,40259.0,0.01046984]
[1643992347014,0.0417,40261.0,40256.0,0.54295651]
[1643992347215,0.0417,40261.0,40256.0,0.59295651]
[1643992347417,0.18635,40279.0,40261.0,0.33877]
[1643992347617,0.28631653,40281.0,40263.0,0.05]
[1643992347814,0.28631653,40281.0,40261.0,0.10839259]
[1643992347815,0.005,40270.0,40261.0,0.10839259]
[1643992348020,0.005,40262.0,40250.0,0.72269134]
[1643992348216,0.005,40257.0,40255.0,0.33877]
[1643992348415,0.005,40257.0,40250.0,0.72269134]
[1643992348615,0.005,40257.0,40255.0,0.33877]
[1643992349016,0.005,40257.0,40256.0,0.4620005]
[1643992349456,0.005,40257.0,40256.0,0.33877]
[1643992349660,0.41301053,40263.0,40254.0,0.01972479]
[1643992349661,0.40813175,40263.0,40254.0,0.01972479]
[1643992349859,0.33877,40262.0,40254.0,0.01972479]
[1643992350059,0.005007,40261.0,40254.0,0.01972479]
[1643992350263,0.20896964,40275.0,40260.0,0.05]
[1643992350460,0.20896964,40275.0,40259.0,0.00839259]
[1643992350461,0.05,40278.0,40270.0,0.15335667]
[1643992350658,0.05,40278.0,40259.0,0.05]
[1643992350859,0.2403252,40277.0,40259.0,0.05]
[1643992351058,0.0768429,40272.0,40268.0,0.42716062]
[1643992351259,0.0768429,40272.0,40259.0,0.05]
[1643992351459,0.38291427,40272.0,40259.0,0.05]
[1643992351658,0.38291427,40272.0,40265.0,0.15865088]
[1643992352078,0.50842376,40278.0,40254.0,0.02053242]
[1643992352079,0.05,40278.0,40254.0,0.02053242]
[1643992352262,0.05,40278.0,40273.0,0.05]
[1643992352465,0.05,40278.0,40274.0,0.05]
[1643992352662,0.05,40278.0,40270.0,0.05]
[1643992352663,0.33877,40277.0,40270.0,0.05]
[1643992352861,0.0466,40278.0,40258.0,0.05]
[1643992353129,0.30745387,40267.0,40258.0,0.05]
[1643992353325,0.30745387,40267.0,40259.0,0.33877]
[1643992353523,0.30745387,40267.0,40258.0,0.05]
[1643992353926,0.10149832,40264.0,40258.0,0.05]
[1643992354127,0.10149832,40264.0,40259.0,0.33877]
[1643992354326,0.00054589,40265.0,40259.0,0.33877]
[1643992354529,0.00054589,40265.0,40259.0,0.38877]
[1643992354725,0.3441302,40277.0,40272.0,0.10109178]
[1643992354726,0.103805,40277.0,40272.0,0.10109178]
[1643992354926,0.005007,40275.0,40272.0,0.10109178]
[1643992355134,0.0466,40278.0,40258.0,0.00156414]
[1643992355135,1.47930381,40259.0,40258.0,0.00156414]
[1643992355325,0.33877,40259.0,40258.0,0.00156414]
[1643992355725,0.33847099,40259.0,40258.0,0.00156414]
[1643992355925,1.98017099,40259.0,40258.0,0.00156414]
[1643992356125,0.38017099,40259.0,40258.0,0.00156414]
[1643992356328,0.74606761,40259.0,40258.0,0.00156414]
[1643992356874,0.74606761,40259.0,40250.0,0.02380444]
[1643992356875,0.005007,40257.0,40250.0,0.02380444]
[1643992357076,0.338465,40255.0,40250.0,0.02380444]
[1643992357274,0.005007,40251.0,40250.0,0.02380444]
[1643992357474,0.12428,40255.0,40250.0,0.02045994]
[1643992357772,0.338812,40254.0,40244.0,0.00400001]
[1643992357974,0.07904688,40250.0,40244.0,0.00400001]
[1643992358176,0.338812,40249.0,40244.0,0.00400001]
[1643992358875,0.0417,40250.0,40245.0,0.11368763]
[1643992359275,0.0417,40250.0,40246.0,0.338812]
[1643992359474,0.0417,40250.0,40242.0,0.00100004]
[1643992359679,0.73590459,40249.0,40242.0,0.00100004]
[1643992359874,0.0417,40250.0,40239.0,0.42063502]
[1643992360076,0.0417,40250.0,40242.0,0.00100004]
[1643992360276,0.0417,40250.0,40249.0,0.85839259]
[1643992360557,0.025,40255.0,40251.0,0.00839259]
[1643992360739,0.025,40255.0,40254.0,0.05]
[1643992360946,0.025,40255.0,40254.0,0.388812]
[1643992361143,0.025,40255.0,40254.0,0.77689012]
[1643992361345,0.05,40262.0,40255.0,0.338812]
[1643992361542,0.062115,40268.0,40261.0,0.05]
[1643992361744,0.03,40271.0,40265.0,0.05]
[1643992361939,0.03,40271.0,40257.0,0.11392994]
[1643992361940,0.00014957,40269.0,40257.0,0.11392994]
[1643992362143,0.00014957,40258.0,40249.0,0.72269134]
[1643992362350,0.00014957,40263.0,40253.0,0.338812]
[1643992362540,0.36099731,40261.0,40251.0,0.04985043]
[1643992362942,0.36099731,40261.0,40252.0,0.07111754]
[1643992363139,0.36099731,40261.0,40255.0,0.39832649]
[1643992363340,0.00014957,40262.0,40256.0,0.338812]
[1643992363742,0.00014957,40262.0,40255.0,0.39832649]
[1643992364041,0.00014957,40262.0,40253.0,0.04985043]
[1643992364270,0.27844072,40260.0,40253.0,0.04985043]
[1643992364467,0.27844072,40260.0,40252.0,0.02126711]
[1643992364468,1.63209845,40253.0,40252.0,0.02126711]
[1643992364669,0.67091045,40253.0,40252.0,0.02126711]
[1643992364873,0.00014957,40254.0,40252.0,0.02126711]
[1643992365068,0.00014957,40254.0,40252.0,0.00069823]
[1643992365069,0.7545506,40253.0,40252.0,0.00069823]
[1643992365268,0.75256538,40253.0,40252.0,0.00069823]
[1643992365868,1.2214753,40253.0,40252.0,0.00069823]
[1643992366068,0.70436923,40253.0,40252.0,0.00069823]
[1643992366266,0.70436923,40253.0,40249.0,0.01881493]
[1643992366467,0.36555723,40253.0,40249.0,0.01881493]
[1643992366666,0.3657068,40253.0,40249.0,0.01881493]
[1643992366876,0.21288014,40264.0,40253.0,1.65]
[1643992367070,0.60246154,40270.0,40263.0,0.05]
[1643992367071,0.09732905,40267.0,40263.0,0.05]
[1643992367268,0.09732905,40267.0,40249.0,0.01881493]
[1643992367269,0.338812,40266.0,40256.0,0.05]
[1643992367473,0.0966,40278.0,40256.0,0.05]
[1643992367474,0.32994268,40274.0,40256.0,0.05]
[1643992367668,0.21288014,40273.0,40256.0,0.05]
[1643992367869,0.32915357,40266.0,40256.0,0.05]
[1643992368119,0.32915357,40266.0,40249.0,0.00065606]
[1643992368120,0.32915357,40266.0,40260.0,0.38866321]
[1643992368820,0.062107,40274.0,40261.0,0.05]
[1643992369220,0.062107,40274.0,40262.0,0.338812]
[1643992369422,0.21288014,40277.0,40264.0,0.05]
[1643992369622,0.27559658,40269.0,40264.0,0.20747878]
[1643992369925,0.27537937,40269.0,40261.0,0.28315468]
[1643992370126,0.26668937,40269.0,40263.0,0.05]
[1643992370326,0.03,40271.0,40266.0,0.05]
[1643992370923,0.03,40271.0,40262.0,0.05]
[1643992371125,0.03,40271.0,40268.0,0.338812]
[1643992371328,0.03,40271.0,40268.0,0.46505003]
[1643992371525,0.03,40271.0,40269.0,0.05]
[1643992371772,0.03,40271.0,40270.0,0.3379968]
[1643992372369,0.03,40271.0,40265.0,0.00066849]
[1643992372370,0.43300396,40270.0,40265.0,0.00066849]
[1643992372568,0.27670639,40268.0,40265.0,0.00066849]
[1643992372968,0.09429796,40270.0,40265.0,0.00066849]
[1643992373569,0.09429796,40270.0,40266.0,0.01883234]
[1643992374272,0.08,40271.0,40266.0,0.15438139]
[1643992374472,0.08,40271.0,40270.0,0.05]
[1643992375071,0.418706,40271.0,40270.0,0.05]
[1643992375275,0.41970819,40271.0,40270.0,0.04899781]
[1643992375918,0.08100219,40271.0,40270.0,0.04899781]
[1643992376121,0.41970819,40271.0,40270.0,0.00066556]
[1643992376321,1.65,40269.0,40257.0,0.04899781]
[1643992376520,0.33285715,40257.0,40248.0,0.79629781]
[1643992376720,0.33285715,40257.0,40243.0,3.4834718]
[1643992376721,0.09562834,40254.0,40252.0,0.338706]
[1643992377019,0.09562834,40254.0,40251.0,0.04899781]
[1643992377218,0.00100219,40258.0,40251.0,0.04899781]
[1643992377418,0.062126,40255.0,40251.0,0.04899781]
[1643992377619,0.062126,40255.0,40254.0,0.0573904]
[1643992377923,0.00100219,40268.0,40262.0,0.00839259]
[1643992378119,0.38270018,40278.0,40267.0,0.04899781]
[1643992378120,0.23715338,40273.0,40267.0,0.04899781]
[1643992378322,0.00100219,40268.0,40262.0,0.04899781]
[1643992378520,0.00100219,40263.0,40249.0,0.124209]
[1643992378720,0.00100219,40263.0,40262.0,0.04899781]
[1643992378921,0.10019633,40263.0,40262.0,0.04899781]
[1643992379575,0.49406048,40263.0,40262.0,0.04899781]
[1643992379873,0.49406048,40263.0,40257.0,0.04899781]
[1643992379874,0.37168174,40260.0,40257.0,0.04899781]
[1643992380073,0.37168174,40260.0,40248.0,0.04899781]
[1643992380074,0.0821627,40257.0,40248.0,0.04899781]
[1643992380279,0.39386415,40263.0,40244.0,1.51699134]
[1643992380280,0.00100219,40255.0,40252.0,0.338706]
[1643992380477,0.0417,40264.0,40254.0,0.0573904]
[1643992380478,0.00100219,40263.0,40254.0,0.0573904]
[1643992380871,0.00100219,40263.0,40255.0,0.1322704]
[1643992381072,0.00100219,40263.0,40254.0,0.04899781]
[1643992381272,0.09024064,40263.0,40254.0,0.04899781]
[1643992381474,0.09033938,40255.0,40254.0,0.04899781]
[1643992381673,0.09033938,40255.0,40251.0,0.0573904]
[1643992381875,0.09033938,40255.0,40253.0,0.00063494]
[1643992382073,0.00100219,40262.0,40254.0,0.0573904]
[1643992382274,0.00100219,40262.0,40254.0,0.15889986]
[1643992382475,0.00100219,40262.0,40254.0,0.338706]
[1643992382676,0.00100219,40255.0,40253.0,0.00063494]
[1643992383019,0.00100219,40255.0,40251.0,0.00059932]
[1643992383020,0.36598055,40253.0,40249.0,0.01967932]
[1643992383315,0.02476793,40250.0,40249.0,0.01967932]
[1643992383717,0.36598055,40253.0,40249.0,0.01967932]
[1643992384714,0.27610359,40255.0,40249.0,0.01967932]
[1643992384915,0.08992263,40252.0,40249.0,0.01967932]
[1643992385216,0.08992263,40252.0,40242.0,0.00839259]
[1643992385417,0.08992263,40252.0,40243.0,0.338706]
[1643992385619,0.30480212,40247.0,40243.0,0.338706]
[1643992385818,0.30480212,40247.0,40237.0,0.02048875]
[1643992386015,0.0417,40248.0,40241.0,0.05]
[1643992386016,0.07369815,40245.0,40241.0,0.05]
[1643992386217,0.0417,40248.0,40241.0,0.05]
[1643992386415,0.0417,40248.0,40243.0,0.34486791]
[1643992386614,0.0417,40248.0,40237.0,0.02048875]
[1643992386869,0.124296,40247.0,40237.0,0.02048875]
[1643992387168,0.36330734,40243.0,40237.0,0.02048875]
[1643992387567,0.124296,40247.0,40239.0,0.54816314]
[1643992387767,0.124296,40247.0,40239.0,0.1337991]
[1643992388567,0.34172885,40246.0,40239.0,0.1337991]
[1643992388767,0.79189937,40246.0,40235.0,0.46546886]
[1643992388970,0.79189937,40246.0,40238.0,0.05]
[1643992389168,0.10196249,40241.0,40240.0,0.00839259]
[1643992389368,0.10196249,40241.0,40235.0,0.0954]
[1643992389870,1.04217888,40246.0,40235.0,0.21492456]
[1643992390072,0.34896922,40238.0,40235.0,0.0954]
[1643992390370,0.0417,40245.0,40236.0,0.338706]
[1643992390371,0.052148,40242.0,40236.0,0.338706]
[1643992390616,0.052148,40242.0,40239.0,0.05]
[1643992390819,0.052148,40242.0,40232.0,0.05]
[1643992391016,0.0417,40245.0,40234.0,0.00839259]
[1643992391214,0.0417,40245.0,40243.0,0.13117118]
[1643992391420,0.05,40246.0,40243.0,0.13956377]
[1643992391616,0.05,40246.0,40245.0,1.5889]
[1643992391816,0.05,40246.0,40245.0,0.3389]
[1643992392014,0.05,40246.0,40243.0,0.13117118]
[1643992392214,0.05082207,40246.0,40243.0,0.13117118]
[1643992392417,0.05082207,40246.0,40240.0,0.05839259]
[1643992392716,0.05082207,40246.0,40241.0,0.09539]
[1643992392915,0.05082207,40246.0,40241.0,0.08939]
[1643992393716,0.05082207,40246.0,40242.0,0.23764396]
[1643992393916,0.05082207,40246.0,40241.0,0.32532219]
[1643992394117,0.05082207,40246.0,40241.0,0.08939]
[1643992394775,0.05082207,40246.0,40245.0,0.79798003]
[1643992394971,0.05082207,40246.0,40245.0,0.74798003]
[1643992395172,0.05082207,40246.0,40245.0,0.79798003]
[1643992395370,0.05082207,40246.0,40245.0,0.93939046]
[1643992395570,0.05082207,40246.0,40245.0,0.05]
[1643992395771,0.05082207,40246.0,40241.0,0.08939]
[1643992398507,0.32397566,40246.0,40241.0,0.08925403]
[1643992398704,0.32397566,40246.0,40235.0,0.12052459]
[1643992398903,0.32397566,40246.0,40241.0,0.13176644]
[1643992399304,0.05082207,40246.0,40242.0,0.3389]
[1643992399517,0.05082207,40246.0,40243.0,0.3389]
[1643992399707,0.05082207,40246.0,40244.0,0.3389]
[1643992399907,0.05082207,40246.0,40245.0,0.05]
[1643992400207,0.05082207,40246.0,40240.0,0.00839259]
[1643992400406,0.05082207,40246.0,40240.0,0.43057694]
[1643992400407,0.04082207,40246.0,40240.0,0.43057694]
[1643992400606,0.04082207,40246.0,40240.0,0.42218435]
[1643992401009,0.04082207,40246.0,40238.0,0.00839259]
[1643992401406,0.04082207,40246.0,40240.0,0.15634035]
[1643992401607,0.04082207,40246.0,40238.0,0.00839259]
[1643992401869,0.38797141,40239.0,40236.0,0.05]
[1643992402071,0.38797141,40239.0,40231.0,0.3389]
[1643992402272,0.0854905,40236.0,40231.0,0.3389]
[1643992402470,0.0457,40240.0,40231.0,0.3389]
[1643992402670,0.0457,40240.0,40233.0,0.3389]
[1643992403871,0.0457,40240.0,40234.0,0.3389]
[1643992404871,0.0457,40240.0,40228.0,0.00839259]
[1643992404872,0.36372232,40237.0,40228.0,0.00839259]
[1643992405073,0.36372232,40237.0,40234.0,0.01970268]
[1643992405074,0.3846,40236.0,40234.0,0.01970268]
[1643992405276,0.3846,40236.0,40225.0,0.09]
[1643992405277,0.35709241,40228.0,40225.0,0.09]
[1643992405528,0.3389,40226.0,40225.0,0.09]
[1643992405726,0.3846,40226.0,40225.0,0.09]
[1643992405927,0.84505265,40226.0,40225.0,0.09]
[1643992406329,0.3846,40226.0,40225.0,0.09]
[1643992406527,0.3846,40226.0,40225.0,0.4289]
[1643992406528,0.0457,40226.0,40225.0,0.4289]
[1643992407127,0.0457,40226.0,40225.0,0.57447596]
[1643992407428,0.39416464,40226.0,40225.0,0.09]
[1643992407629,0.73306464,40226.0,40225.0,0.09]
[1643992408227,0.3846,40226.0,40225.0,0.09]
[1643992408429,0.3846,40226.0,40225.0,0.4289]
[1643992408430,0.0457,40226.0,40225.0,0.4289]
[1643992408833,0.0457,40226.0,40225.0,0.09]
[1643992409267,0.72605995,40226.0,40225.0,0.09]